bitfinex-derivatives/quotes_ETHF0:USTF0_20250908
["timestamp","ask_amount","ask_price","bid_price","bid_amount"]
[1757306453118,4.50801844,4306.0,4305.9,0.7251]
[1757306453319,4.81331844,4306.0,4305.9,0.7251]
[1757306453714,4.46447844,4306.0,4305.9,0.7251]
[1757306454015,3.2078,4306.0,4305.9,0.7251]
[1757306454422,3.9274,4306.0,4305.9,0.7251]
[1757306455622,0.7196,4306.0,4305.9,0.7251]
[1757306457022,0.3053,4306.4,4306.0,0.1281]
[1757306457212,3.4418,4306.6,4306.5,0.1281]
[1757306457418,3.9512,4306.6,4306.5,0.8532]
[1757306457716,0.7434,4306.6,4306.5,0.8532]
[1757306458425,0.5094,4306.9,4306.8,0.7251]
[1757306458822,3.4418,4307.1,4306.8,0.7251]
[1757306459132,3.9512,4307.1,4307.0,0.8532]
[1757306459620,3.4119,4307.1,4307.0,0.8532]
[1757306460319,0.1166,4307.0,4306.6,0.304]
[1757306460524,0.3053,4306.6,4306.5,0.4211]
[1757306460715,0.7196,4306.6,4306.5,0.4211]
[1757306461211,0.7196,4306.6,4306.5,0.7251]
[1757306461411,0.7196,4306.6,4306.5,0.8532]
[1757306474028,0.7196,4306.6,4306.5,0.7251]
[1757306474930,0.7196,4306.6,4306.5,0.2093]
[1757306475129,0.7196,4306.6,4306.5,0.512]
[1757306475332,0.7196,4306.6,4306.5,0.7117]
[1757306476336,0.7139,4306.4,4306.3,0.0696]
[1757306476531,1.56839393,4306.4,4306.3,0.0696]
[1757306476732,0.4179,4305.6,4305.5,4.2733]
[1757306477034,0.7139,4305.6,4305.5,4.0393]
[1757306478034,0.7139,4305.6,4305.5,3.7115]
[1757306478334,0.4124,4305.5,4305.4,0.5037]
[1757306478632,0.8303,4305.5,4305.4,0.5037]
[1757306480128,0.7139,4305.5,4305.4,0.7034]
[1757306485142,0.5076,4305.5,4305.4,0.7034]
[1757306487843,0.7139,4305.5,4305.4,0.7034]
[1757306489343,1.68479393,4305.5,4305.2,0.0696]
[1757306490045,1.68479393,4305.5,4305.4,0.201]
[1757306490241,1.68479393,4305.5,4305.4,0.5037]
[1757306490549,1.68479393,4305.5,4305.4,0.7034]
[1757306491845,0.7139,4305.5,4305.4,0.7034]
[1757306496938,3.2078,4306.0,4305.8,0.2018]
[1757306497145,3.9333,4306.0,4305.9,0.3143]
[1757306497342,0.311,4305.9,4305.7,0.3143]
[1757306497544,0.7255,4305.8,4305.7,0.5134]
[1757306497749,0.7255,4305.8,4305.7,0.7152]
[1757306498142,0.5244,4305.8,4305.7,0.7152]
[1757306500040,0.311,4306.1,4305.8,0.3143]
[1757306500250,1.57999393,4306.2,4306.1,0.4009]
[1757306500452,1.57999393,4306.2,4306.1,0.7152]
[1757306500749,1.57999393,4306.2,4306.1,0.5134]
[1757306500952,1.57999393,4306.2,4305.7,0.3143]
[1757306502455,0.7255,4305.6,4305.5,3.4418]
[1757306502646,1.57999393,4305.6,4305.5,3.4418]
[1757306503160,0.7255,4305.6,4305.5,4.157]
[1757306503454,0.7255,4305.6,4305.5,3.923]
[1757306505756,0.2134,4305.6,4305.5,4.0508]
[1757306506053,0.2134,4306.3,4306.2,0.7152]
[1757306506259,0.7255,4306.3,4306.2,0.7152]
[1757306507769,0.4145,4305.8,4305.7,0.5483]
[1757306507968,0.4145,4305.8,4305.7,0.7474]
[1757306507969,0.7255,4305.8,4305.7,0.7474]
[1757306508274,0.7255,4305.8,4305.7,0.7152]
[1757306508469,0.7255,4305.8,4305.7,0.5134]
[1757306509771,0.7255,4305.8,4305.7,0.7152]
[1757306511164,0.2134,4305.8,4305.7,0.7152]
[1757306511372,1.26899393,4305.9,4305.5,3.2774]
[1757306511670,1.57999393,4305.6,4305.5,3.7908]
[1757306512768,1.57999393,4305.6,4305.5,3.7212]
[1757306513970,1.57999393,4305.6,4305.5,3.923]
[1757306515673,0.7255,4305.6,4305.5,4.0508]
[1757306515969,0.311,4305.1,4305.0,0.1991]
[1757306516168,1.57999393,4305.1,4305.0,0.5134]
[1757306516674,0.7255,4304.7,4304.6,0.4009]
[1757306516876,0.7255,4304.7,4304.6,0.6349]
[1757306517270,0.7255,4304.7,4304.6,0.9492]
[1757306519169,0.7255,4304.7,4304.6,0.7152]
[1757306520272,0.2134,4304.7,4304.6,0.7152]
[1757306520773,0.5244,4304.7,4304.6,0.7152]
[1757306523979,0.7255,4304.7,4304.6,0.7152]
[1757306525080,0.5244,4304.7,4304.6,0.7152]
[1757306526680,0.7255,4304.7,4304.6,0.7152]
[1757306529577,0.8483,4304.5,4304.4,0.0696]
[1757306530081,0.7241,4304.4,4304.3,3.2078]
[1757306530276,0.7241,4304.4,4304.3,3.504]
[1757306530478,0.7241,4304.4,4304.3,3.7032]
[1757306532281,0.7241,4304.4,4304.3,3.2078]
[1757306532481,0.4142,4303.9,4303.8,4.8780775]
[1757306532687,0.7241,4303.9,4303.8,3.2078]
[1757306533183,0.7241,4303.9,4303.8,3.9131]
[1757306544694,0.7241,4303.9,4303.8,0.7053]
[1757306547793,0.7241,4303.9,4303.7,0.2962]
[1757306547995,0.7241,4303.9,4303.8,0.4954]
[1757306548189,0.9581,4303.9,4303.8,0.4954]
[1757306549190,0.9581,4303.9,4303.8,0.7053]
[1757306549389,0.7513,4303.9,4303.8,0.7053]
[1757306549999,0.9581,4303.9,4303.8,0.7053]
[1757306551098,0.9581,4303.9,4303.6,0.0697]
[1757306551396,0.9581,4303.9,4303.6,0.2689]
[1757306551397,1.73444415,4303.7,4303.6,0.2689]
[1757306551595,0.5439,4303.9,4303.6,0.4788]
[1757306551799,0.7513,4303.9,4303.8,0.4091]
[1757306551986,0.7513,4303.9,4303.8,0.7053]
[1757306552187,0.9581,4303.9,4303.8,0.7053]
[1757306554395,0.9581,4303.9,4303.8,0.1992]
[1757306554593,0.9581,4303.9,4303.6,0.3659]
[1757306554994,0.9581,4303.9,4303.8,0.1992]
[1757306555297,0.9581,4303.9,4303.8,0.7053]
[1757306556893,0.9581,4303.9,4303.8,0.5237]
[1757306557095,0.9581,4303.9,4303.8,0.7327]
[1757306558391,0.9581,4303.9,4303.8,0.5237]
[1757306558593,0.9581,4303.9,4303.7,0.3093]
[1757306559094,0.9581,4303.9,4303.6,0.379]
[1757306559502,0.9581,4303.9,4303.7,0.3093]
[1757306559802,0.9581,4303.9,4303.8,0.5237]
[1757306560103,0.9581,4303.9,4303.7,0.3093]
[1757306560296,0.9581,4303.9,4303.8,0.5237]
[1757306560999,1.72797464,4303.9,4303.6,0.0697]
[1757306561298,0.4019,4303.7,4303.6,0.0697]
[1757306561595,0.7172,4303.7,4303.3,0.3093]
[1757306561798,1.72754415,4303.4,4303.3,0.3093]
[1757306562495,0.3153,4303.3,4303.2,3.2078]
[1757306562695,0.9512,4303.3,4303.2,3.2078]
[1757306563196,0.9512,4303.3,4302.8,0.48592712]
[1757306563395,1.72754415,4302.9,4302.8,0.70032712]
[1757306563590,1.96154415,4302.9,4302.8,0.70032712]
[1757306564194,1.96154415,4302.9,4302.8,0.90932712]
[1757306564393,0.4367,4302.9,4302.8,0.90932712]
[1757306564593,0.9512,4302.9,4302.8,0.90932712]
[1757306570697,0.4367,4302.9,4302.8,0.90932712]
[1757306570896,0.752,4302.9,4302.8,0.90932712]
[1757306571099,0.9512,4302.9,4302.8,0.90932712]
[1757306572700,0.9512,4302.9,4302.8,0.17662712]
[1757306574105,0.9512,4302.9,4302.8,0.70032712]
[1757306579312,0.9512,4302.9,4302.8,0.90932712]
[1757306586011,0.717,4303.4,4303.3,0.4194]
[1757306586205,0.717,4303.4,4303.3,0.2143]
[1757306586408,0.717,4303.4,4302.8,0.17662712]
[1757306586714,1.72734415,4303.1,4303.0,0.7232]
[1757306588712,0.717,4303.1,4303.0,0.7232]
[1757306590307,1.32177368,4303.1,4303.0,0.8495]
[1757306590511,1.00327368,4303.1,4303.0,0.8495]
[1757306591115,0.80247368,4303.1,4303.0,0.8495]
[1757306591310,1.00327368,4303.1,4303.0,0.8495]
[1757306591513,3.2078,4303.6,4303.1,0.3038]
[1757306591811,3.4418,4303.6,4303.5,0.8495]
[1757306592016,4.18698367,4303.6,4303.5,0.8495]
[1757306592315,4.50548367,4303.6,4303.5,0.8495]
[1757306592508,3.9611,4303.6,4303.5,0.8495]
[1757306592908,4.76357368,4303.6,4303.5,0.8495]
[1757306594713,4.96127368,4303.6,4303.5,0.8495]
[1757306596716,4.96127368,4303.6,4303.5,0.7232]
[1757306597218,4.72727368,4303.6,4303.5,0.8495]
[1757306597413,3.4086,4303.6,4303.5,0.8495]
[1757306597711,3.2078,4303.6,4303.5,0.8495]
[1757306599011,0.234,4303.7,4303.5,0.5457]
[1757306599312,0.5193,4303.6,4303.5,0.5457]
[1757306599617,0.5193,4303.6,4303.5,0.8495]
[1757306604616,0.2008,4303.6,4303.5,0.8495]
[1757306604921,0.234,4303.7,4303.6,0.7232]
[1757306605107,0.4348,4303.7,4303.6,0.7232]
[1757306605307,0.7533,4303.7,4303.6,0.7232]
[1757306606213,0.951,4303.7,4303.6,0.7232]
[1757306618250,0.9476,4303.7,4303.6,0.7232]
[1757306619543,0.7533,4303.7,4303.6,0.7232]
[1757306619851,1.51087368,4304.3,4304.2,0.5029]
[1757306620052,2.05489137,4304.3,4304.2,0.5029]
[1757306620247,2.05489137,4304.3,4303.6,0.3084]
[1757306620447,1.51087368,4304.3,4303.6,0.3084]
[1757306621340,0.7084,4304.1,4304.0,0.1945]
[1757306621545,0.7084,4304.1,4304.0,0.5029]
[1757306628557,0.7084,4304.1,4304.0,0.7087]
[1757306629557,0.7084,4304.1,4304.0,0.8357]
[1757306630468,0.7084,4304.1,4304.0,0.7087]
[1757306631763,0.7084,4304.1,4304.0,0.8357]
[1757306635569,0.7084,4304.1,4304.0,0.7087]
[1757306641074,0.7084,4304.1,4304.0,0.5029]
[1757306641467,0.1232,4304.0,4303.8,3.2775]
[1757306641675,0.7084,4303.9,4303.8,3.7804]
[1757306641873,0.5141,4303.9,4303.8,3.9862]
[1757306642074,0.5141,4303.9,4303.8,3.9165]
[1757306642374,0.7084,4303.9,4303.8,3.9165]
[1757306644969,0.7084,4303.9,4303.6,0.0697]
[1757306645274,0.7084,4303.7,4303.6,0.5726]
[1757306645475,0.7084,4303.7,4303.6,0.7784]
[1757306646376,0.2144,4303.7,4303.6,0.7784]
[1757306647472,0.5157,4303.7,4303.6,0.7784]
[1757306647673,0.5157,4303.7,4303.6,0.7087]
[1757306648880,0.7144,4303.7,4303.6,0.7087]
[1757306654682,0.7016,4303.6,4303.5,0.5061]
[1757306655282,0.7016,4303.6,4303.5,0.71]
[1757306656583,1.01086411,4304.4,4303.5,0.5253]
[1757306656773,1.17706526,4304.3,4304.2,0.5061]
[1757306657184,0.94472526,4304.3,4304.2,0.71]
[1757306657384,1.24602526,4304.3,4304.2,0.71]
[1757306658186,0.5029,4304.3,4304.2,0.71]
[1757306658785,0.7016,4304.3,4304.2,0.71]
[1757306663387,3.2078,4304.9,4304.2,0.71]
[1757306663587,3.2078,4304.9,4304.7,0.4069]
[1757306663588,3.5091,4304.9,4304.7,0.4069]
[1757306663796,0.7016,4304.8,4304.7,0.4069]
[1757306663998,1.71246411,4304.8,4304.1,0.234]
[1757306664285,1.71246411,4304.8,4304.2,0.3031]
[1757306666679,0.3013,4304.7,4304.3,0.3031]
[1757306666889,0.4003,4304.4,4304.3,0.4069]
[1757306667191,0.7016,4304.4,4304.3,0.71]
[1757306675089,1.41116411,4304.8,4304.7,0.4069]
[1757306675290,1.71246411,4304.8,4304.7,0.7229]
[1757306678589,0.7016,4304.8,4304.7,0.7229]
[1757306690819,0.7258,4305.3,4305.2,0.7328]
[1757306691116,1.46610031,4305.3,4305.2,0.7328]
[1757306692018,0.97240031,4305.3,4305.2,0.7328]
[1757306692219,0.4286,4305.3,4305.2,0.7328]
[1757306692522,0.7258,4305.3,4305.2,0.7328]
[1757306693514,0.9223,4305.3,4305.2,0.7328]
[1757306695413,0.4918,4305.3,4305.2,0.7328]
[1757306695716,0.6251,4305.9,4305.8,0.2034]
[1757306696016,1.16868083,4305.9,4305.8,0.5194]
[1757306696218,1.46588083,4305.9,4305.8,0.2034]
[1757306699924,1.46588083,4305.9,4305.8,0.5194]
[1757306700726,0.2972,4305.8,4305.2,0.316]
[1757306701220,0.1946,4305.3,4305.2,0.7328]
[1757306701520,0.6883,4305.3,4305.2,0.7328]
[1757306701917,0.1946,4305.3,4305.2,0.7328]
[1757306702119,0.2972,4305.5,4305.3,0.316]
[1757306702324,0.4918,4305.5,4305.4,0.4168]
[1757306702527,0.4918,4305.5,4305.4,0.7328]
[1757306703021,0.2972,4305.7,4305.4,0.7328]
[1757306703227,0.7258,4305.9,4305.8,0.7328]
[1757306703820,0.9223,4305.9,4305.8,0.7328]
[1757306706926,0.6462,4306.4,4306.3,0.2019]
[1757306707122,1.27720964,4306.4,4306.3,0.6952]
[1757306707324,1.51120964,4306.4,4306.3,0.6952]
[1757306707920,1.27720964,4306.4,4306.3,0.6952]
[1757306708725,0.4122,4305.8,4305.7,0.2954]
[1757306709024,0.7342,4305.8,4305.7,0.2954]
[1757306709430,0.7342,4305.8,4305.7,0.4973]
[1757306710429,0.7342,4305.8,4305.7,0.6952]
[1757306711127,0.4122,4305.8,4305.4,0.2954]
[1757306711434,0.7342,4305.2,4305.1,0.6952]
[1757306711733,0.7342,4305.6,4305.5,0.6952]
[1757306718241,0.7342,4305.6,4305.5,0.4973]
[1757306721041,0.7342,4305.6,4305.5,0.6952]
[1757306721433,0.556,4305.9,4305.6,0.2954]
[1757306721727,0.9682,4305.9,4305.8,0.6952]
[1757306724234,0.7342,4305.9,4305.8,0.6952]
[1757306724435,0.5331,4306.4,4306.3,0.3998]
[1757306724641,0.5331,4306.4,4306.3,0.6952]
[1757306729141,0.322,4306.9,4306.3,0.3998]
[1757306729343,1.33461445,4306.6,4306.5,0.822]
[1757306729544,1.87797202,4306.6,4306.5,0.822]
[1757306729745,2.07907202,4306.6,4306.5,0.822]
[1757306730342,2.07907202,4306.6,4306.5,0.6952]
[1757306732745,1.27755757,4306.6,4306.5,0.822]
[1757306733347,2.07907202,4306.6,4306.5,0.822]
[1757306737449,2.07907202,4306.6,4306.5,0.6952]
[1757306738352,2.07907202,4306.6,4306.5,0.4973]
[1757306738652,2.07907202,4306.6,4306.5,0.6925]
[1757306740353,1.53571445,4306.6,4306.5,0.6925]
[1757306741348,1.53571445,4306.6,4306.3,0.0696]
[1757306741548,0.1193,4306.5,4306.4,0.3069]
[1757306741755,0.8307,4306.5,4306.4,0.7002]
[1757306742147,0.7114,4306.5,4306.4,0.7002]
[1757306742850,1.25439686,4306.5,4306.4,0.7002]
[1757306743051,1.37369686,4306.5,4306.4,0.7002]
[1757306744653,1.25439686,4306.5,4306.4,0.7002]
[1757306744956,0.7114,4306.5,4306.4,0.7002]
[1757306745350,0.1954,4306.5,4306.4,1.50171445]
[1757306745555,0.5077,4306.8,4306.7,0.7002]
[1757306745757,0.5077,4306.8,4306.7,3.908]
[1757306751160,0.7114,4306.8,4306.7,3.908]
[1757306751356,1.25444289,4306.8,4306.7,3.4059]
[1757306751559,1.25444289,4306.8,4306.7,3.7128]
[1757306752757,0.7114,4306.8,4306.7,3.908]
[1757306752959,1.51291445,4306.8,4306.7,3.908]
[1757306759158,1.51291445,4306.8,4306.7,0.7002]
[1757306759966,0.7114,4306.8,4306.7,0.7002]
[1757306760267,1.51291445,4306.8,4306.7,0.7002]
[1757306760455,0.5184,4306.5,4306.4,0.3069]
[1757306760767,1.63221445,4306.5,4306.4,0.505]
[1757306761164,1.63221445,4306.5,4306.4,0.7002]
[1757306761757,1.51291445,4306.5,4306.4,0.7002]
[1757306762064,0.7114,4306.5,4306.4,0.7002]
[1757306766167,0.5231,4306.5,4306.2,0.0696]
[1757306766369,1.50421445,4306.3,4306.2,0.0696]
[1757306766575,2.04762945,4306.3,4306.2,0.0696]
[1757306767073,2.27984945,4306.3,4306.2,0.0696]
[1757306767870,2.04762945,4306.3,4306.2,0.0696]
[1757306768763,0.301,4305.4,4305.1,0.5164]
[1757306768971,0.4017,4305.0,4304.9,0.5164]
[1757306769173,0.8267,4305.0,4304.9,0.5164]
[1757306769368,0.301,4304.9,4304.8,3.2078]
[1757306769573,0.4017,4304.7,4304.6,0.5164]
[1757306769774,0.7027,4304.7,4304.6,0.5164]
[1757306772173,0.8267,4304.5,4304.4,0.0696]
[1757306772473,1.83714174,4304.5,4304.4,0.0696]
[1757306774683,2.07114174,4304.5,4304.4,0.0696]
[1757306775583,2.07114174,4304.5,4303.8,0.3159]
[1757306775783,0.7027,4303.9,4303.8,0.5164]
[1757306775983,0.9367,4303.9,4303.8,0.5164]
[1757306776181,0.301,4303.8,4303.4,0.3159]
[1757306776392,0.301,4303.4,4303.1,0.3159]
[1757306776689,0.7027,4302.9,4302.8,0.17662712]
[1757306776895,0.9367,4302.9,4302.8,0.17662712]
[1757306777581,0.7027,4302.0,4301.9,0.5164]
[1757306777784,1.70984174,4302.0,4301.6,3.5237]
[1757306777983,0.4017,4301.7,4301.6,3.4083]
[1757306778189,0.7027,4301.7,4301.6,3.7242]
[1757306778489,0.7027,4301.7,4301.6,3.9235]
[1757306779089,0.4017,4301.7,4301.6,3.9235]
[1757306781083,0.7027,4302.4,4302.3,0.5164]
[1757306781394,0.2005,4301.8,4301.7,0.7157]
[1757306783194,0.7027,4301.8,4301.7,0.7157]
[1757306783691,0.7027,4301.8,4301.7,0.5164]
[1757306784297,0.7027,4301.8,4301.7,0.7157]
[1757306786088,0.234,4301.9,4301.7,0.7157]
[1757306786388,0.2005,4301.8,4301.7,0.7157]
[1757306786995,0.4017,4301.8,4301.7,0.7157]
[1757306787294,0.7027,4301.8,4301.7,0.7157]
[1757306788582,0.7027,4301.8,4301.7,0.5164]
[1757306789287,0.7027,4301.8,4301.7,0.7157]
[1757306791096,0.4017,4301.8,4301.7,0.7157]
[1757306791497,0.7027,4301.8,4301.7,0.7157]
[1757306792898,0.4017,4301.8,4301.7,0.7157]
[1757306793200,0.7027,4301.8,4301.7,0.7157]
[1757306799806,0.4017,4301.8,4301.7,0.7157]
[1757306801111,0.2005,4301.8,4301.7,0.7157]
[1757306801816,0.3167,4301.8,4301.7,0.7157]
[1757306803513,0.5507,4301.8,4301.7,0.7157]
[1757306803714,0.7603,4301.8,4301.7,0.7157]
[1757306803913,0.3502,4301.8,4301.7,0.7157]
[1757306804218,0.1162,4301.8,4301.7,0.7157]
[1757306804419,0.1162,4301.8,4301.7,4.94816]
[1757306804721,0.1162,4301.8,4301.7,4.7157]
[1757306805413,0.65833154,4301.8,4301.7,4.7157]
[1757306805713,0.85473154,4301.8,4301.7,0.7157]
[1757306806020,1.35473154,4301.8,4301.7,0.7157]
[1757306807721,1.06433154,4301.8,4301.7,0.7157]
[1757306808021,0.85473154,4301.8,4301.7,0.7157]
[1757306809423,0.65833154,4301.8,4301.7,0.7157]
[1757306810517,0.85473154,4301.8,4301.7,0.7157]
[1757306812823,1.35473154,4301.8,4301.7,0.7157]
[1757306813926,1.06433154,4301.8,4301.7,0.7157]
[1757306814624,1.35473154,4301.8,4301.7,0.7157]
[1757306814922,1.06433154,4301.8,4301.7,0.7157]
[1757306815519,1.35473154,4301.8,4301.7,0.5164]
[1757306815717,1.35473154,4301.8,4301.7,0.3159]
[1757306817428,1.35473154,4301.8,4301.7,0.5234]
[1757306819023,1.35473154,4301.8,4301.7,0.7377]
[1757306819324,1.06433154,4301.8,4301.7,0.7377]
[1757306821227,1.29833154,4301.8,4301.7,0.7377]
[1757306822830,0.89233154,4301.8,4301.7,0.7377]
[1757306824335,0.3502,4301.8,4301.7,0.7377]
[1757306826737,0.5466,4301.8,4301.7,0.7377]
[1757306827135,1.0564,4301.8,4301.7,0.7377]
[1757306828738,1.0564,4301.8,4301.7,0.3159]
[1757306829037,1.0564,4301.8,4301.5,0.3786]
[1757306829237,0.717,4301.6,4301.5,0.3786]
[1757306829432,1.72744174,4301.6,4301.5,0.3786]
[1757306829633,1.72744174,4301.6,4301.5,0.3089]
[1757306830139,1.84364174,4301.6,4301.5,0.3089]
[1757306830337,1.84364174,4301.6,4301.5,0.5032]
[1757306830536,1.84364174,4301.6,4301.5,0.3089]
[1757306832441,1.63640301,4301.6,4301.5,0.3089]
[1757306834635,1.87040301,4301.6,4301.5,0.3089]
[1757306835938,1.87040301,4301.6,4301.5,0.5032]
[1757306836747,1.87040301,4301.6,4301.5,0.6258]
[1757306837553,1.87040301,4301.6,4301.3,0.0697]
[1757306837554,0.717,4301.4,4301.3,0.0697]
[1757306837851,1.49426212,4301.4,4301.3,0.0697]
[1757306838058,1.49426212,4301.4,4300.8,0.3089]
[1757306838345,1.52020301,4300.9,4300.8,0.5032]
[1757306838554,1.44070301,4300.9,4300.8,0.7138]
[1757306838748,1.75420301,4300.9,4300.8,0.7138]
[1757306842651,1.75420301,4300.9,4300.8,0.3089]
[1757306842854,1.75420301,4300.9,4300.8,0.5032]
[1757306844150,1.75420301,4300.9,4300.7,0.3089]
[1757306844351,1.44070301,4300.9,4300.7,0.3089]
[1757306844551,0.717,4300.8,4300.7,0.5032]
[1757306847354,0.717,4300.8,4300.7,0.7138]
[1757306848057,1.20670301,4300.8,4300.7,0.7138]
[1757306848353,0.80320301,4301.1,4300.8,0.3089]
[1757306848647,0.80320301,4301.1,4300.7,3.6127]
[1757306848648,0.80320301,4301.1,4301.0,0.8364]
[1757306848848,1.52020301,4301.1,4301.0,0.8364]
[1757306849758,1.20670301,4301.1,4301.0,0.8364]
[1757306851658,1.52020301,4301.1,4301.0,0.8364]
[1757306852157,1.20670301,4301.1,4301.0,0.8364]
[1757306852357,1.32290301,4301.1,4301.0,0.8364]
[1757306852757,1.63640301,4301.1,4301.0,0.7138]
[1757306852957,1.32290301,4301.1,4301.0,0.8364]
[1757306854647,0.1162,4301.1,4301.0,0.8364]
[1757306860062,3.2078,4301.8,4301.7,0.7157]
[1757306860255,0.80320301,4302.2,4302.1,0.7157]
[1757306860256,1.75230301,4302.2,4302.1,0.7157]
[1757306863566,1.43470301,4302.2,4302.1,0.7157]
[1757306864264,1.75230301,4302.2,4302.1,0.7157]
[1757306867053,1.43470301,4302.2,4302.1,0.7157]
[1757306867459,1.20070301,4302.2,4302.1,0.7157]
[1757306867661,1.51830301,4302.2,4302.1,0.7157]
[1757306872466,0.2016,4302.7,4302.6,0.4031]
[1757306872662,0.9491,4302.7,4302.6,0.7157]
[1757306872860,0.9491,4302.7,4302.6,0.5133]
[1757306873068,0.9491,4302.7,4302.1,0.3126]
[1757306873264,1.51830301,4302.2,4302.1,0.5133]
[1757306873769,1.20070301,4302.2,4301.9,3.2078]
[1757306873971,0.7151,4302.0,4301.9,3.7211]
[1757306876280,0.8367,4302.0,4301.9,3.2078]
[1757306876876,0.7151,4302.0,4301.9,3.7211]
[1757306877074,0.7151,4302.0,4301.9,0.5133]
[1757306881173,0.234,4302.2,4301.9,0.7157]
[1757306881379,0.7151,4302.1,4302.0,0.322]
[1757306881778,0.7151,4302.1,4302.0,0.6346]
[1757306881971,0.7151,4302.1,4302.0,0.5133]
[1757306882378,1.51830301,4302.1,4302.0,0.5133]
[1757306882579,1.51830301,4302.1,4302.0,0.837]
[1757306882773,1.20070301,4302.1,4302.0,0.837]
[1757306883682,1.35480301,4302.4,4302.1,0.3126]
[1757306883875,1.55640301,4302.4,4302.3,0.7157]
[1757306884181,1.23880301,4302.4,4302.3,0.7157]
[1757306885083,1.75230301,4302.4,4302.3,0.7157]
[1757306886080,1.74690301,4302.4,4302.3,0.7157]
[1757306887579,4.95470301,4302.4,4302.3,0.7157]
[1757306887976,5.49859752,4302.4,4301.8,0.2953]
[1757306888172,0.7227,4301.9,4301.8,0.2953]
[1757306888377,0.7227,4301.9,4301.7,0.0697]
[1757306888578,0.359,4302.0,4301.7,0.0697]
[1757306888579,1.52590301,4301.8,4301.7,0.0697]
[1757306888973,1.21370301,4301.8,4301.2,0.2953]
[1757306889179,1.21370301,4301.8,4301.7,0.7105]
[1757306889677,1.52590301,4301.8,4301.7,0.7105]
[1757306889879,0.234,4302.1,4301.7,0.4152]
[1757306890078,0.2056,4302.1,4302.0,0.5442]
[1757306890381,0.7227,4302.1,4302.0,0.7105]
[1757306890570,1.52590301,4302.1,4302.0,0.4997]
[1757306892382,0.7227,4302.1,4302.0,0.4997]
[1757306893583,0.7227,4302.1,4302.0,0.7105]
[1757306893785,0.7227,4302.1,4302.0,0.8395]
[1757306894485,0.4105,4302.1,4302.0,0.8395]
[1757306895185,0.234,4302.2,4302.1,0.2953]
[1757306895384,3.2078,4302.4,4302.0,0.129]
[1757306895385,3.2078,4302.4,4302.2,0.2953]
[1757306895580,3.2078,4302.4,4302.3,0.7105]
[1757306897184,3.2078,4302.4,4302.3,0.94293]
[1757306897387,0.3122,4303.2,4302.9,0.2953]
[1757306897580,0.3122,4303.2,4303.1,0.2044]
[1757306897788,0.3122,4303.5,4303.2,0.2953]
[1757306897986,0.3122,4303.5,4303.4,0.4152]
[1757306898288,0.5178,4303.5,4303.4,0.7105]
[1757306903594,0.7227,4303.5,4303.4,0.7105]
[1757306907796,0.8494,4303.5,4303.4,0.7105]
[1757306908795,0.8494,4303.5,4303.4,0.4152]
[1757306910589,0.8494,4303.5,4303.4,0.7105]
[1757306916902,0.3214,4303.9,4303.4,0.4152]
[1757306917198,0.125,4304.0,4303.9,0.697]
[1757306917199,0.7601,4304.0,4303.9,0.697]
[1757306917603,1.0815,4304.0,4303.9,0.697]
[1757306917997,1.0815,4304.0,4303.9,0.3918]
[1757306918408,1.0815,4304.0,4303.9,0.1953]
[1757306921708,0.7225,4303.4,4303.2,0.0697]
[1757306921901,0.7225,4302.4,4302.3,3.2078]
[1757306923909,0.7225,4302.4,4302.3,3.4031]
[1757306925002,0.3214,4302.7,4302.3,0.697]
[1757306925204,0.6361,4302.9,4302.8,0.1953]
[1757306925708,0.9575,4302.9,4302.8,0.1953]
[1757306926607,0.7225,4302.9,4302.8,0.697]
[1757306928212,0.7225,4302.9,4302.8,0.3918]
[1757306928410,0.7225,4302.9,4302.8,0.697]
[1757306932208,0.5241,4302.9,4302.8,0.697]
[1757306932409,3.2078,4304.1,4303.7,0.3052]
[1757306932711,0.85,4303.5,4303.4,0.1953]
[1757306933113,0.85,4303.5,4303.4,0.5005]
[1757306933312,0.85,4303.5,4303.4,0.697]
[1757306935416,0.5241,4303.5,4303.4,0.697]
[1757306938017,0.1275,4304.0,4303.4,0.697]
[1757306938322,0.5241,4303.9,4303.8,0.697]
[1757306941221,3.2078,4304.1,4304.0,0.8231]
[1757306941528,0.5241,4304.5,4304.4,0.697]
[1757306944429,0.235,4304.6,4304.5,0.1261]
[1757306944726,0.5241,4304.7,4304.6,0.5017]
[1757306944933,0.7225,4304.7,4304.6,0.697]
[1757306949040,0.7225,4304.7,4304.0,4.34562182]
[1757306949041,0.1274,4304.5,4304.0,3.2078]
[1757306949238,0.7091,4303.9,4303.8,0.235]
[1757306949639,0.7091,4303.9,4303.5,0.3143]
[1757306949839,0.5426,4303.5,4303.4,3.653]
[1757306950039,0.8365,4303.5,4303.4,3.9673]
[1757306950440,0.8365,4303.5,4303.4,4.1821]
[1757306951948,0.8365,4303.5,4303.4,3.6328]
[1757306952139,0.8365,4303.5,4303.4,3.418]
[1757306953044,0.8365,4303.5,4303.4,3.7323]
[1757306953549,0.8365,4303.5,4303.4,3.9471]
[1757306953749,0.7091,4303.5,4303.4,3.9471]
[1757306954350,0.5038,4303.5,4303.4,3.9471]
[1757306954647,0.2939,4303.9,4303.5,0.1201]
[1757306954850,0.5038,4303.9,4303.8,0.7393]
[1757306955050,0.234,4304.3,4303.8,0.425]
[1757306955247,0.5038,4304.0,4303.9,0.7393]
[1757306955949,0.7091,4304.0,4303.9,0.7393]
[1757306956648,0.8365,4304.0,4303.9,0.7393]
[1757306957045,0.8365,4304.0,4303.9,0.425]
[1757306957953,0.8365,4304.0,4303.9,0.7393]
[1757306959551,0.5038,4304.1,4304.0,0.8594]